Cogmind - Beta 15 @@@ ROGUE MODE // 2025.05.15 @ 21:10:12 Player: Cray_ Result: Destroyed by KF-NYG(R) with Subdweller Machine Gun Performance ------------- Evolutions (0) 0 Regions Visited (3) 600 Robots Destroyed (14) 70 Value Destroyed (341) 341 Prototype IDs (0) 0 Alien Tech Used (0) 0 Bonus (0) 0 TOTAL SCORE: 1011 Bonus ------- None Cogmind --------- Core Integrity 0/250 Matter 195/300 Energy 250/250 System Corruption 3% Temperature Cool (0) Movement Walking (260) Ox2 Location -10/Subcaves Parts ------- > --- POWER (1) -------- Ion Engine > --- PROPULSION (2) --- Aluminum Leg > --- UTILITY (2) ------ Medium Storage Unit Signal Interpreter > --- WEAPON (2) ------- Heavy Assault Rifle Heavy Assault Rifle > --- INVENTORY (10) --- Subdweller Power Source Improved Heat Sink Signal Interpreter Targeting Computer Makeshift Light Armor Plating Makeshift Hacking Suite Light Assault Rifle Mining Laser Piercing Trap Scrap Shield Fragment (46) Peak State ------------ > --- POWER ------------ Ion Engine > --- PROPULSION ------- Aluminum Leg Aluminum Leg > --- UTILITY ---------- Medium Storage Unit Signal Interpreter > --- WEAPON ----------- Heavy Assault Rifle Heavy Assault Rifle > --- INVENTORY -------- Subdweller Power Source Improved Heat Sink Signal Interpreter Targeting Computer Makeshift Light Armor Plating Makeshift Hacking Suite Light Assault Rifle Mining Laser Piercing Trap Scrap Shield Fragment [Rating: 11] Favorites ----------- Power Ion Engine Engine Ion Engine Propulsion Aluminum Leg Treads Light Treads Leg Aluminum Leg Utility Medium Storage Unit Device Heat Sink Storage Medium Storage Unit Processor Signal Interpreter Weapon Heavy Assault Rifle Energy Gun Particle Gun Ballistic Gun Heavy Assault Rifle Build | -11 -10 -10 -10 ------- Run | Yrd Mat Min Sub Slots Evolved . | . . . . Power . | . . . . Propulsion . | . . . . Utility . | . . . . Weapon . | . . . . Parts Attached 20 | 6 10 . 4 Power 3 | 1 1 . 1 Engine 3 | 1 1 . 1 Core . | . . . . Reactor . | . . . . Propulsion 4 | 2 2 . . Treads 2 | 2 . . . Leg 2 | . 2 . . Wheel . | . . . . Hover . | . . . . Flight . | . . . . Utility 5 | 1 3 . 1 Device 1 | . 1 . . Storage 2 | 1 1 . . Processor 2 | . 1 . 1 Hackware . | . . . . Protection . | . . . . Artifact . | . . . . Weapon 8 | 2 4 . 2 Energy Gun 1 | . 1 . . Energy Cannon . | . . . . Ballistic Gun 7 | 2 3 . 2 Ballistic Cannon . | . . . . Launcher . | . . . . Special Weapon . | . . . . Impact Weapon . | . . . . Slashing Weapon . | . . . . Piercing Weapon . | . . . . Special Melee Weapon . | . . . . Unidentified Prototypes . | . . . . Parts Lost 7 | . 3 . 4 Power 1 | . . . 1 Propulsion 2 | . 1 . 1 Utility . | . . . . Weapon 4 | . 2 . 2 Highest Loss Streak 3 | . 3 . 3 To Critical Strikes . | . . . . Average Backups 6 | 3 5 9 8 Power 1 | . 1 1 1 Propulsion . | 1 1 . . Utility 2 | . 1 4 4 Weapon 2 | 1 1 4 2 Tool/Special . | . . . . Unused Backups 6 | . . . 6 Power 1 | . . . 1 Propulsion . | . . . . Utility 5 | . . . 5 Weapon . | . . . . Tool/Special . | . . . . Average Slot Usage (%) 90 | . 84 85 96 Engine 13 | . 13 14 13 Treads 8 | . 17 . . Leg 16 | . 4 28 27 Device 2 | . 6 . . Storage 14 | . 14 14 14 Processor 6 | . 2 . 12 Ballistic Gun 25 | . 23 28 27 Peak Build Rating 11 | 6 10 9 11 Average Rating 8 | 4 7 9 10 On Entrance 6 | . 6 9 9 Naked Turns . | . . . . Heaviest Build 21 | 12 21 21 21 Greatest Support 40 | 40 40 20 20 Greatest Overweight (x) 4 | 1 4 1 2 Average Overweight (x) . | . . 1 1 Largest Inventory Capacity 10 | 8 10 10 10 Average Capacity 9 | 7 8 10 10 Most Carried 10 | 7 10 9 10 Average Carried 7 | 3 5 9 9 Final Capacity 10 | 8 10 10 10 Final Carried 10 | 4 9 9 10 Class Distribution -------------------- 100% | Mutant Dominant Class ---------------- Mutant | -10/Materials Mutant | -10/Mines Mutant | -10/Subcaves Resources | -11 -10 -10 -10 ----------- Run | Yrd Mat Min Sub Matter Collected 716 | 170 325 . 221 Remotely . | . . . . Salvage Created 490 | . 336 . 154 Parts 29 | . 23 . 6 Haulers Intercepted 1 | . 1 . . Recyclers Shooed 1 | . 1 . . Parts Field Recycled . | . . . . Retrieved Matter . | . . . . Parts Self-Destructed 1 | . . . 1 Prevented . | . . . . Kills | -11 -10 -10 -10 ------- Run | Yrd Mat Min Sub Combat Hostiles Destroyed 10 | . 8 . 2 Guns 10 | . 8 . 2 Classes Destroyed 7 | . 5 . 2 Worker 1 | . 1 . . Hauler 1 | . 1 . . Watcher 2 | . 2 . . Swarmer 3 | . 3 . . Grunt 5 | . 5 . . Cobbler 1 | . . . 1 Subdweller 2 | . . . 2 Best Kill Streak 4 | . 4 . 2 Combat Bots Only 4 | . 4 . 2 Max Kills in Single Turn 1 | . 1 . 1 Gunslinging . | . . . . Exploded . | . . . . Melee . | . . . . Uniques/NPCs Destroyed . | . . . . Combat | -11 -10 -10 -10 -------- Run | Yrd Mat Min Sub Hostile Shots Fired 123 | . 88 . 35 Missed 38 | . 26 . 12 Hits 85 | . 62 . 23 Projectile 85 | . 62 . 23 Critical Strikes 5 | . 4 . 1 Damage Taken 1511 | . 858 . 653 Core 257 | . 111 . 146 Absorbed by Shields . | . . . . Core Remaining (%) 100 | 100 . . . Volleys Fired 81 | . 53 . 28 Largest 2 | . 2 . 2 Hottest 85 | . 85 . 46 Shots Fired 143 | . 88 . 55 Gun 143 | . 88 . 55 Cannon . | . . . . Launcher . | . . . . Special . | . . . . Kinetic 136 | . 81 . 55 Thermal 7 | . 7 . . Explosive . | . . . . Electromagnetic . | . . . . Robot Hit Streak 11 | . 11 . 7 Robot Miss Streak 3 | . 3 . 3 Penetration Max . | . . . . Secondary Targets 2 | . 2 . . Max Gunslinging Chain 1 | . 1 . . Shots Hit Robots 96 | . 59 . 37 Core Hits 33 | . 25 . 8 Critical Kills . | . . . . Critical Parts Destroyed . | . . . . Critical Strikes 1 | . 1 . . Burn 1 | . 1 . . Melee Attacks . | . . . . Impact . | . . . . Slashing . | . . . . Piercing . | . . . . Sneak Attacks . | . . . . Combat Hostiles . | . . . . Follow-up Attacks . | . . . . Damage Inflicted 1257 | . 714 . 543 Guns 1257 | . 714 . 543 Cannons . | . . . . Explosions . | . . . . Melee . | . . . . Ramming . | . . . . Kinetic 1193 | . 650 . 543 Thermal 64 | . 64 . . Explosive . | . . . . Electromagnetic . | . . . . Impact . | . . . . Slashing . | . . . . Piercing . | . . . . Highest Corruption 3 | . 3 3 3 Average Corruption 2 | . 2 3 3 Corruption Purged . | . . . . Corruption Blocked . | . . . . Effects 38 | . 20 4 14 Message Errors 8 | . 4 1 3 Matter Fused 7 | . 3 1 3 Heat Flow Errors 5 | . 2 1 2 Energy Discharges 5 | . 2 . 3 Parts Fused 1 | . 1 . . Data Loss (minor) 5 | . 2 1 2 Data Loss (major) 2 | . 1 . 1 Misfires 2 | . 2 . . Weapon Failures 3 | . 3 . . Overload Shots . | . . . . Overflow Damage . | . . . . Projectiles . | . . . . Explosions . | . . . . Melee . | . . . . Knockbacks . | . . . . Impact . | . . . . Kinetic . | . . . . Secondary . | . . . . Self-Inflicted Damage . | . . . . Shots . | . . . . Rammed . | . . . . Targets Rammed . | . . . . Kicked . | . . . . Crushed . | . . . . Highest Temperature 245 | . 245 119 158 Average Temperature 71 | . 73 62 67 Received Heat Transfer 462 | . 399 . 63 Siege Activations . | . . . . Martial Activations . | . . . . Shielding Activations . | . . . . Robots Disrupted . | . . . . Combat Hostiles . | . . . . Robots Corrupted . | . . . . Combat Hostiles . | . . . . Parts Fried . | . . . . Impact Corruptions . | . . . . Robots Melted . | . . . . Combat Hostiles . | . . . . Parts Melted . | . . . . Heat Transferred 222 | . 222 . . Parts Sabotaged . | . . . . Parts Stolen . | . . . . Parts Stripped . | . . . . Power Chain Reactions . | . . . . Alert | -11 -10 -10 -10 ------- Run | Yrd Mat Min Sub Maximum Alert Level . | . . . . Low Security (%) 100 | 100 100 100 . Level 1 . | . . . . Level 2 . | . . . . Level 3 . | . . . . Level 4 . | . . . . Level 5 . | . . . . High Security . | . . . . Max Security . | . . . . Peak Influence 80 | . 80 . . Initial . | . . . . Average 14 | . 18 . . Influence Increases 239 | . 239 . . Destroy 0b10 Robot/C 160 | . 160 . . Destroy 0b10 Robot/NC 20 | . 20 . . Destroy Leader 46 | . 46 . . Successful Hack 13 | . 13 . . Influence Decreases 239 | . 239 . . Time Decay 217 | . 217 . . Lost Part 22 | . 22 . . Squads Dispatched 1 | . 1 . . Investigation . | . . . . Extermination . | . . . . Reinforcement 1 | . 1 . . Assault . | . . . . Garrison . | . . . . Intercept . | . . . . Searches Triggered . | . . . . Construction Impeded . | . . . . Haulers Reinforced . | . . . . Active Scanning Responses . | . . . . Cargo Convoy Interrupts . | . . . . Stealth | -11 -10 -10 -10 --------- Run | Yrd Mat Min Sub Distress Signals 2 | . 2 . . Communications Jammed . | . . . . Distress Signals . | . . . . Times Spotted 31 | . 28 . 3 Peak Tracking Total 6 | . 6 . 2 Tactical Retreats 1 | . 1 . . Traps | -11 -10 -10 -10 ------- Run | Yrd Mat Min Sub Traps Triggered 8 | . 5 . 3 Indirectly . | . . . . Trap Hack Attempts . | . . . . Triggered . | . . . . Disarmed . | . . . . Reprogrammed . | . . . . Reused . | . . . . Traps Extracted . | . . . . Installed . | . . . . Triggered . | . . . . Most Traps Carried 1 | . . . 1 Machines | -11 -10 -10 -10 ---------- Run | Yrd Mat Min Sub Machines Disabled . | . . . . Max in Single Turn . | . . . . Machines Repaired . | . . . . Machines Dismantled . | . . . . Machines Sabotaged . | . . . . Overloaded Fab Kills . | . . . . Hacking | -11 -10 -10 -10 --------- Run | Yrd Mat Min Sub Machines Accessed 5 | . 5 . . Terminals 4 | . 4 . . Fabricators . | . . . . Repair Stations . | . . . . Recycling Units 1 | . 1 . . Scanalyzers . | . . . . Garrison Access . | . . . . Total Hacks 11 | . 11 . . Successful 5 | . 5 . . Failed 6 | . 6 . . Catastrophic 1 | . 1 . . Database Lockouts . | . . . . Manual 9 | . 9 . . Terminals 9 | . 9 . . Fabricators . | . . . . Repair Stations . | . . . . Recycling Units 2 | . 2 . . Scanalyzers . | . . . . Garrison Access . | . . . . Terminal Hacks 4 | . 4 . . Record 1 | . 1 . . Robot Analysis 1 | . 1 . . Branch Access Points 1 | . 1 . . Unreport Threat 1 | . 1 . . Fabricator Hacks . | . . . . Repair Station Hacks . | . . . . Recycling Unit Hacks 1 | . 1 . . Retrieve Components 1 | . 1 . . Scanalyzer . | . . . . Garrison Access Hacks . | . . . . Unauthorized Hacks . | . . . . Terminals . | . . . . Fabricators . | . . . . Repair Stations . | . . . . Recycling Units . | . . . . Scanalyzers . | . . . . Garrison Access . | . . . . Data Cores Recovered . | . . . . Used . | . . . . Hacking Detections 4 | . 4 . . Full Trace Events 1 | . 1 . . Feedback Events . | . . . . Feedback Blocked . | . . . . Robot Schematics Acquired . | . . . . Robots Built . | . . . . Authchips . | . . . . Time . | . . . . Total Robot Build Rating . | . . . . Part Schematics Acquired . | . . . . Parts Built . | . . . . Authchips . | . . . . Time . | . . . . Total Part Build Rating . | . . . . Parts Repaired . | . . . . Time . | . . . . Parts Recycled . | . . . . Recycled Matter . | . . . . Retrieved Matter . | . . . . Retrieved Components 7 | . 7 . . Parts Scanalyzed . | . . . . Part Schematics Acquired . | . . . . Parts Damaged . | . . . . Bothacking | -11 -10 -10 -10 ------------ Run | Yrd Mat Min Sub Used RIF Installer . | . . . . Robots Hacked . | . . . . Non-combat . | . . . . Combat . | . . . . Robot Hacks Applied . | . . . . Relay Couplers Released . | . . . . Fabnet Peak Effective % . | . . . . Robots Rewired . | . . . . Allies Hacked . | . . . . Hacks Repelled . | . . . . Allies | -11 -10 -10 -10 -------- Run | Yrd Mat Min Sub Total Allies . | . . . . Largest Group . | . . . . Highest-Rated Group . | . . . . Highest-Rated Ally . | . . . . Total Orders . | . . . . Ally Attacks . | . . . . Total Damage . | . . . . Kills . | . . . . Allies Corrupted . | . . . . Allies Melted 1 | . . . 1 Intel | -11 -10 -10 -10 ------- Run | Yrd Mat Min Sub Active Infowar (turns) 130 | . 130 . . Optics 130 | . 130 . . Robot Analysis Total 1 | . 1 . . Derelict Logs Recovered . | . . . . Drone Launches . | . . . . Drone Recoveries . | . . . . Exploration | -11 -10 -10 -10 ------------- Run | Yrd Mat Min Sub Turns Passed 1766 | 117 767 116 766 Spaces Moved 804 | 67 338 62 337 Core 19 | 16 3 . . Treads 307 | 51 256 . . Legs 478 | . 79 62 337 Wheels . | . . . . Hover . | . . . . Flight . | . . . . Fastest Speed 50 | 50 120 190 120 Average Speed 176 | 135 167 190 191 Slowest Speed 260 | 160 250 190 260 Overloaded Moves . | . . . . Propulsion Burnouts . | . . . . Robots Hopped . | . . . . Potential Cave-ins . | . . . . Cave-ins Triggered . | . . . . Exploration Rate (%) 19 | 5 55 7 10 Regions Visited 3 Branch Regions 2 Pre-discovered Areas . | . . . . Known Exits Taken 1 | . 1 . . Unknown Exits Taken 2 | 1 . 1 . Scrap Searched . | . . . . Spaces Dug . | . . . . Terrain Destroyed . | . . . . Melee . | . . . . Projectile . | . . . . AOE . | . . . . Terrain Rammed . | . . . . Walls Destroyed . | . . . . Machines Disabled . | . . . . Actions | -11 -10 -10 -10 --------- Run | Yrd Mat Min Sub Total 1011 | 93 455 61 402 Wait 70 | 12 30 . 28 Move 801 | 66 337 61 337 Hop . | . . . . Pick Up 29 | 9 15 . 5 Fast Attach 4 | 1 3 . . Attach 19 | 5 10 . 4 Detach 1 | . 1 . . Swap 2 | . 2 . . Drop 4 | . 4 . . Fire 81 | . 53 . 28 Melee . | . . . . Ram . | . . . . Kick . | . . . . Crush . | . . . . Escape Stasis . | . . . . Rewire . | . . . . Trap . | . . . . Miscellaneous . | . . . . Route ------- -11/Scrapyard -10/Materials (discovered 3 exits: [*Mat] / *Min x2) -10/Mines (discovered 2 exits: [*Exi] / [*Sub]) -10/Subcaves History --------- Turn | Location | Event 6 | -11/Scrapyard | Discovered new exit (range 16) 118 | -11/Scrapyard | Entered Materials 313 | -10/Materials | Build established: Mutant 500 | -10/Materials | Lost 3 parts (1n2w) 602 | -10/Materials | Identified exit to Mines 781 | -10/Materials | Discovered new exit (range 5) 818 | -10/Materials | Derelicts attacked the area 885 | -10/Materials | Entered Mines 914 | -10/Mines | Deemed a non-threat by the Exiles lab entrance 914 | -10/Mines | Discovered new exit (range 5) 948 | -10/Mines | Discovered new exit (range 15) 957 | -10/Mines | Assembled infested the area 1001 | -10/Mines | Entered Subcaves 1002 | -10/Subcaves | Approached by a straggling Scientist 1036 | -10/Subcaves | Shifting Twisted Machinery released Mak. Light Armor Plating 1061 | -10/Subcaves | Shifting Twisted Machinery released Sub. Power Source 1231 | -10/Subcaves | Core integrity fell below 50% 1279 | -10/Subcaves | Lost 3 parts (1p2w) 1714 | -10/Subcaves | Core integrity fell below 20% 1767 | -10/Subcaves | Destroyed by KF-NYG(R) with Subdweller Machine Gun Last Messages --------------- 01395_ Triggered Piercing Trap. 01395_ Spikes shoot up from the floor. 01395_ Critical hit (Impale). 01402_ System corrupted: Energy discharge (-85). 01408_ DR-ND6(u) builds Twisted Machinery. 01473_ ESYDSGTI,RFKO 01483_ Subatomizers dissect the Sub. Optics. 01496_ Subatomizers dissect the Sub. Optics, destroying it. 01532_ Acquired Piercing Trap. 01554_ Acquired Mak. Hacking Suite. 01611_ System corrupted: Component data lost. 01630_ System corrupted: Energy discharge (-67). 01674_ System corrupted: Energy discharge (-62). 01691_ VB-5TT(O) cries out in pain. 01691_ VB-5TT(O) destroyed. 01694_ Acquired 67 matter. 01706_ KF-NYG(R): "MADSUB!" 01708_ W< = D53XL/NS,TON:WL4H8=>HNR D 01715_ Aluminum Leg destroyed. Map ----- +----------------------------------------------------+ | ?????????????????????????????????????????????????? | | ?????????????????????????????????????????????????? | | ?????????????????????????????????????????????????? | | ?????????????????????????????????????????????????? | | ?????????????????????????????????????????????????? | | ?????????????????????????????????????????????????? | | ?????????????????????????????????????????????????? | | ?????????????????????????????????????????????????? | | ?????????????????????????????????????????????????? | | ?????????????????????????????????????????????????? | | ?????????????????????????????????????????????????? | | ?????????????????????????????????????????????????? | | ?????????????????????????????????????????????????? | | ?????????????????????????????????????????????????? | | ?????????????????????????????????????????????????? | | ?????????????????????????????????????????????????? | | ?????????????????????????????????????????????????? | | ?????????????????????????????????????????????????? | | ?????????????????????????????????????????????????? | | ?????????????????????????????????????????????????? | | ????????????????????????????????? "??????????????? | | ????????????????????????????????? ???????????????? | | ?????????????#?????????????????## ???????????????? | | ????????????? #???????????????? #???????????????? | | ?????????? ?????????###???? ##??????????????? | | ?????????? ?????????#@###?? #?##???????????? | | ?????????# #????????##R ##? ## ##??????????? | | ?????????# ##???????## ## #??????????? | | ???????### #???????# # #??????????? | | ???????# ##??????# ## #??????????? | | ???????# ##?????## #??????????? | | ??????## ##????## #???????????? | | ?????## ????## ##???????????? | | ?????# #???## ##???????????? | | ?????# ?# #???# #???????????? | | ??????# ## ##??# ## ##???????????? | | ??????# ## ##?# ######????????????? | | ?????## ## ### #??????????????? | | ?????# ] ##??????????????? | | ?????# ## * #### ##???????????????? | | ?????# ### ## ##??## #????????????????? | | ?????## #?# ######????###????????????????? | | ??????#### ### ##???????????????????????????? | | ?????????## ## #???????????????????????????? | | ???????### ### #???????????????????????????? | | ?????### # ### #???????????????????????????? | | ?????# #?##" #???????????????????????????? | | ?????## #??#" ##???????????????????????????? | | ?????# ## "#### "##????????????????????????????? | | ?????## ## ###" ""##???????????????????????????? | +----------------------------------------------------+ Best States ------------- Heat Dissipation 35 Energy Generation 10 Energy Capacity 250 Matter Stores 279 Matter Capacity 300 Sight Range 18 Terrain Scan Density 10 Evasion (%) 55 Recoil Reduction 2 Item Schematics ----------------- None Robot Schematics ------------------ None Fabricated ------------ Nothing Repaired ---------- Nothing Alien Tech Used ----------------- None Achievements -------------- None Challenges ------------ None Game ------ Seed BoltCorePick Manual? 0 Play Time 00:32:43 Cumulative 56.7 hours Start 2025.05.15 @ 20:39:02 End 2025.05.15 @ 21:10:12 Sessions 1 Manual Loads 0 Difficulty Rogue Special Mode None Game No. 53 Rogue 53 Adventurer 0 Explorer 0 Win Type - Total 1 Types 1/0/0/0/0/0/0/0/0/0 Lore% 36 Gallery% 32 Achievement% 36 Wizard Run 0 Options --------- Layout 1 ASCII 0 Keyboard 0 Movement Mouse Keybinds 0 Fullscreen 2 Font 24/Smallcaps Map View 50x35 Zoom Use 0% Tactical HUD 1 Map Filters NONE Filters NONE Steam 1 RUN: ae3e309e-b29c-4434-854e-6801f7798df9